bitfinex/quotes_ETHUSD_20250802
["timestamp","ask_amount","ask_price","bid_price","bid_amount"]
[1754151731234,0.9284,3459.9,3459.5,3.0]
[1754151731537,0.9284,3459.8,3459.5,3.0]
[1754151731737,0.001,3460.2,3459.5,3.0]
[1754151731936,0.9284,3459.7,3459.5,3.0]
[1754151735008,0.9284,3459.6,3459.2,0.1448]
[1754151735210,0.9284,3459.5,3457.8,0.5983]
[1754151735409,0.001,3460.2,3458.4,0.1448]
[1754151735410,0.9284,3459.4,3458.4,0.1448]
[1754151735635,0.9436023,3459.3,3458.3,4.617]
[1754151735945,0.9284,3459.2,3458.3,4.617]
[1754151736146,0.55,3460.1,3458.3,4.617]
[1754151736339,0.9284,3459.1,3458.3,4.617]
[1754151736645,0.9284,3459.0,3458.2,0.1448]
[1754151736846,0.9284,3458.9,3457.4,0.002]
[1754151737032,0.9436023,3458.9,3457.5,0.1448]
[1754151737345,0.9284,3458.8,3457.4,0.002]
[1754151737536,0.0152023,3458.7,3457.4,0.002]
[1754151737713,0.9284,3458.7,3457.4,0.002]
[1754151737914,0.0152023,3458.6,3457.4,0.002]
[1754151738124,0.9284,3458.6,3457.4,0.002]
[1754151738325,0.9436023,3458.5,3457.4,0.002]
[1754151738728,0.0152023,3458.5,3457.4,0.002]
[1754151738928,0.9284,3458.4,3457.4,0.002]
[1754151739342,0.9284,3458.3,3457.4,0.002]
[1754151739548,0.9436023,3458.2,3457.4,0.002]
[1754151739753,0.9284,3458.2,3457.4,0.002]
[1754151739958,0.9284,3458.1,3457.4,0.002]
[1754151740138,0.0152023,3459.1,3457.4,0.002]
[1754151740462,0.9284,3458.0,3457.4,0.002]
[1754151740642,0.0152023,3458.9,3457.4,0.002]
[1754151740839,0.55,3458.7,3457.4,0.002]
[1754151741038,0.9436023,3458.6,3457.4,0.002]
[1754151741257,0.9284,3458.6,3457.4,0.002]
[1754151741430,1.07624,3458.5,3457.4,0.002]
[1754151741789,0.5652023,3458.4,3457.4,0.002]
[1754151741964,0.9491023,3458.4,3457.4,0.002]
[1754151742164,0.4361,3458.3,3457.4,0.002]
[1754151742367,0.0152023,3458.2,3457.4,0.002]
[1754151742733,0.9339,3458.1,3457.4,0.002]
[1754151742933,0.5652023,3458.0,3457.4,0.002]
[1754151743148,1.4991023,3458.0,3457.4,0.002]
[1754151743463,0.55,3457.8,3457.4,0.002]
[1754151743670,0.0152023,3457.7,3457.4,0.002]
[1754151743848,0.14991023,3457.6,3457.4,0.002]
[1754151744044,0.0152023,3457.5,3457.4,0.002]
[1754151744257,0.9491023,3457.5,3457.4,0.002]
[1754151744865,0.9339,3457.5,3457.4,0.002]
[1754151748661,0.55,3458.3,3457.4,0.002]
[1754151748870,0.9339,3457.9,3457.4,0.002]
[1754151749378,0.9339,3457.8,3457.4,0.002]
[1754151749580,0.9339,3457.7,3457.4,0.002]
[1754151749775,0.0152023,3457.6,3457.4,0.002]
[1754151749977,0.9491023,3457.6,3457.4,0.002]
[1754151750341,0.0152023,3457.6,3457.4,0.002]
[1754151750553,0.9339,3457.5,3457.4,0.002]
[1754151751792,1.4839,3457.5,3457.4,0.002]
[1754151751969,1.63229,3457.5,3457.4,0.002]
[1754151752168,1.08229,3457.5,3457.4,0.002]
[1754151752474,1.63229,3457.5,3457.4,0.002]
[1754151754545,1.08229,3457.5,3457.4,0.002]
[1754151754944,0.58449,3457.5,3457.4,0.002]
[1754151755155,1.08229,3457.5,3457.4,0.002]
[1754151755358,0.14839,3457.5,3457.4,0.002]
[1754151755539,0.9339,3457.5,3457.4,0.002]
[1754151757603,3.4978,3458.5,3457.4,0.002]
[1754151757760,3.0,3459.0,3457.4,0.002]
[1754151757966,0.9339,3458.4,3457.4,0.002]
[1754151758192,0.65738502,3458.3,3457.4,0.002]
[1754151758900,0.55,3458.1,3457.4,0.002]
[1754151759400,0.9339,3458.0,3457.4,0.002]
[1754151760095,0.65738502,3458.3,3457.4,0.002]
[1754151760096,4.615,3458.1,3457.4,0.002]
[1754151760398,0.9339,3458.4,3457.4,0.4892]
[1754151760624,0.4361,3458.4,3457.5,0.02892263]
[1754151760788,4.614,3458.5,3457.4,0.002]
[1754151760985,4.614,3458.5,3457.6,0.4872]
[1754151762264,0.4361,3458.4,3457.4,0.03092346]
[1754151762517,4.614,3458.7,3457.8,9.57670117]
[1754151762722,4.614,3458.7,3457.9,0.51611928]
[1754151762869,4.614,3458.7,3457.9,0.4872]
[1754151763369,0.4361,3458.9,3457.9,0.4872]
[1754151764109,11.565,3459.1,3458.0,0.17231844]
[1754151764275,11.565,3459.1,3458.2,0.1448]
[1754151764863,11.565,3459.1,3458.3,0.4872]
[1754151765370,11.565,3459.1,3458.2,0.1448]
[1754151765371,12.4989,3459.1,3458.2,0.1448]
[1754151765731,0.9339,3459.0,3457.8,0.4872]
[1754151765962,0.9339,3459.0,3457.9,0.1448]
[1754151766272,0.9339,3459.0,3457.9,0.36472668]
[1754151766564,0.9339,3459.0,3457.9,0.85192668]
[1754151767131,0.9339,3459.0,3458.0,0.4872]
[1754151767526,0.4361,3459.0,3458.0,0.4872]
[1754151769277,0.9339,3459.0,3458.0,0.4872]
[1754151770237,5.5449,3459.0,3458.0,0.4872]
[1754151771382,0.9339,3458.9,3457.9,0.26472668]
[1754151771582,0.1448,3458.5,3457.9,0.26472668]
[1754151771784,0.1448,3458.5,3457.9,0.0448]
[1754151774290,0.1448,3458.5,3457.9,0.25971596]
[1754151775041,0.9269,3458.4,3457.9,0.0448]
[1754151775350,0.1448,3458.1,3457.6,0.1448]
[1754151775551,0.9269,3458.0,3457.6,0.1448]
[1754151775763,1.0717,3457.9,3457.4,0.1468]
[1754151775970,0.611,3457.9,3457.4,0.1468]
[1754151776366,1.0717,3457.9,3457.4,0.36517148]
[1754151776741,0.4662,3457.8,3457.4,0.36517148]
[1754151777092,1.0717,3457.7,3457.4,0.002]
[1754151777238,0.1448,3457.5,3457.4,0.002]
[1754151778037,0.9269,3458.1,3457.4,0.002]
[1754151778252,0.1448,3457.7,3457.4,0.4664]
[1754151778497,0.1448,3457.7,3457.4,0.002]
[1754151778808,0.1448,3458.0,3457.5,0.1448]
[1754151778967,4.607,3458.5,3457.4,0.002]
[1754151778968,0.1448,3457.8,3457.4,0.002]
[1754151779358,0.9269,3457.7,3457.4,0.002]
[1754151779709,0.1448,3457.6,3457.4,0.002]
[1754151779853,1.0717,3457.6,3457.4,0.002]
[1754151780053,0.0152023,3457.5,3457.4,0.002]
[1754151780253,0.9269,3457.5,3457.4,0.002]
[1754151781476,0.4662,3457.5,3457.4,0.002]
[1754151781714,0.9269,3457.5,3457.4,0.002]
[1754151782426,0.1448,3457.6,3457.4,0.002]
[1754151782551,0.4607,3457.5,3457.4,0.002]
[1754151782752,0.9269,3457.5,3457.4,0.002]
[1754151783152,9.5756879,3459.4,3457.4,0.002]
[1754151783153,0.9269,3458.7,3457.4,10.0420879]
[1754151783352,0.1448,3458.0,3457.5,3.4644]
[1754151783651,0.9269,3458.7,3457.5,3.4644]
[1754151783652,0.1448,3458.1,3457.6,0.6092]
[1754151784267,0.9269,3458.5,3457.5,3.0]
[1754151784477,0.1448,3458.3,3457.8,0.1448]
[1754151785862,0.1448,3458.3,3457.9,0.4644]
[1754151786058,0.1448,3458.3,3457.8,0.1448]
[1754151786459,0.9269,3458.2,3457.8,0.1448]
[1754151786668,0.1448,3457.9,3457.4,0.002]
[1754151786856,0.9421023,3458.1,3457.4,0.002]
[1754151786857,0.1448,3457.5,3457.4,0.002]
[1754151787294,1.1555,3457.5,3457.0,0.002]
[1754151787505,0.1448,3457.2,3457.0,0.002]
[1754151787792,0.0152023,3457.1,3457.0,0.002]
[1754151787997,1.4769,3457.1,3457.0,0.002]
[1754151788296,2.09957,3457.1,3457.0,0.002]
[1754151788507,2.1147723,3457.1,3457.0,0.002]
[1754151789006,35.1147723,3457.1,3457.0,0.002]
[1754151789166,35.09957,3457.1,3457.0,0.002]
[1754151790159,5.09957,3457.1,3457.0,0.002]
[1754151790362,9.84937,3457.1,3457.0,0.002]
[1754151792092,9.29937,3457.1,3457.0,0.002]
[1754151793107,0.1448,3457.1,3457.0,0.002]
[1754151793305,6.954,3458.3,3457.0,0.002]
[1754151793306,5.0657,3457.6,3457.0,0.002]
[1754151794210,0.0152023,3457.5,3457.0,0.002]
[1754151794445,0.9269,3457.4,3457.0,0.002]
[1754151794915,4.604,3457.5,3457.0,0.002]
[1754151795209,0.4607,3458.2,3457.1,0.4644]
[1754151795378,4.604,3458.1,3457.1,0.4644]
[1754151795578,4.604,3458.0,3457.1,0.4644]
[1754151797110,0.9269,3457.9,3457.0,0.002]
[1754151797481,0.9269,3457.8,3457.0,0.002]
[1754151797813,0.55309,3457.7,3457.0,0.002]
[1754151798181,0.9269,3457.6,3457.0,0.002]
[1754151798386,4.604,3457.5,3457.0,0.002]
[1754151798588,5.5461023,3457.5,3457.0,0.002]
[1754151798782,0.9421023,3457.4,3457.0,0.002]
[1754151798983,0.55461023,3457.3,3457.0,0.002]
[1754151799392,1.48151023,3457.3,3457.0,0.002]
[1754151799811,0.9421023,3457.2,3457.0,0.002]
[1754151800015,0.9269,3457.2,3457.0,0.002]
[1754151800210,0.56981253,3457.3,3457.0,0.002]
[1754151800412,0.9269,3457.1,3457.0,0.002]
[1754151800725,0.4662,3457.6,3457.0,0.002]
[1754151800926,4.603,3457.5,3457.0,0.002]
[1754151801124,4.603,3457.5,3457.0,0.4664]
[1754151801737,4.603,3457.6,3457.0,0.002]
[1754151801891,0.4607,3457.9,3457.1,0.4911]
[1754151802090,0.4662,3458.0,3457.1,0.4911]
[1754151802091,4.603,3457.8,3457.1,0.84350285]
[1754151802395,7.4207,3458.3,3457.1,0.84350285]
[1754151802593,6.955,3458.3,3457.2,0.52002514]
[1754151802904,4.602,3458.2,3457.3,3.0]
[1754151803088,4.602,3458.2,3457.4,0.34885044]
[1754151803415,0.1448,3458.0,3457.5,0.1448]
[1754151803922,0.1448,3458.0,3457.6,0.4911]
[1754151804219,0.1448,3458.0,3457.5,0.1448]
[1754151804518,0.1448,3458.0,3457.6,0.4911]
[1754151805019,0.001,3458.3,3457.7,0.4911]
[1754151805220,0.001,3458.3,3457.6,0.35240285]
[1754151805221,0.1448,3458.1,3457.6,0.35240285]
[1754151805429,0.9079,3458.0,3457.0,0.4931]
[1754151805725,0.1448,3457.7,3457.1,0.1448]
[1754151807223,0.001,3458.3,3457.3,3.0]
[1754151807388,0.001,3458.3,3457.6,0.1448]
[1754151807389,0.1448,3458.1,3457.6,0.1448]
[1754151807588,0.1448,3458.1,3457.7,0.4911]
[1754151808485,0.1448,3458.1,3457.6,0.1448]
[1754151808726,0.001,3458.3,3457.7,0.66742095]
[1754151809044,0.1448,3458.2,3457.8,0.17372012]
[1754151809337,0.1448,3458.2,3457.9,0.4911]
[1754151809492,0.1448,3458.2,3457.8,0.1448]
[1754151809694,0.001,3458.3,3457.9,0.4911]
[1754151809918,0.1458,3458.3,3457.9,0.4911]
[1754151810493,0.1458,3458.3,3458.0,0.4911]
[1754151810858,0.001,3458.3,3458.0,0.4911]
[1754151812504,0.4432,3458.3,3457.8,0.1448]
[1754151812706,0.9079,3458.2,3457.2,0.4911]
[1754151812919,0.1448,3458.1,3457.6,0.1448]
[1754151813536,0.1458,3458.3,3457.8,0.1448]
[1754151813713,0.1458,3458.3,3457.9,0.4911]
[1754151813927,0.1458,3458.3,3457.8,0.1448]
[1754151814136,0.1458,3458.3,3457.9,0.4911]
[1754151815532,0.001,3458.3,3458.0,0.52001844]
[1754151815730,0.001,3458.3,3458.2,3.0]
[1754151815937,0.001,3458.3,3458.2,3.17371677]
[1754151816354,0.1448,3459.0,3458.2,3.81221677]
[1754151816512,0.1448,3459.0,3458.9,12.5730683]
[1754151816699,5.0392,3460.3,3459.0,3.0]
[1754151816904,0.4422,3460.3,3459.7,3.0]
[1754151817360,0.0152023,3460.7,3459.1,9.5730683]
[1754151817503,0.0152023,3460.7,3459.2,0.1448]
[1754151817504,0.9079,3459.7,3459.2,0.1448]
[1754151817811,0.9079,3459.6,3458.9,3.0]
[1754151818015,0.5652023,3460.5,3459.0,0.1448]
[1754151818216,0.9079,3459.5,3459.0,0.1448]
[1754151818534,0.9079,3459.4,3459.0,0.1448]
[1754151818707,0.4422,3459.4,3459.0,0.1448]
[1754151819111,0.9079,3459.3,3459.0,0.1448]
[1754151819601,0.9079,3459.7,3459.0,0.1448]
[1754151819801,0.9079,3459.7,3459.2,3.0]
[1754151820005,0.4422,3459.7,3459.2,3.0]
[1754151820242,0.4422,3459.7,3459.2,3.02890841]
[1754151821314,0.4422,3459.7,3459.2,3.0]
[1754151821508,0.55,3460.5,3459.2,3.0]
[1754151821761,0.4422,3459.6,3459.0,0.1448]
[1754151823353,0.4422,3459.6,3458.8,0.1448]
[1754151823354,0.4657,3459.5,3458.8,0.1448]
[1754151823720,0.4422,3459.4,3458.8,0.1448]
[1754151824133,0.4657,3459.3,3458.2,4.593]
[1754151824335,0.4809023,3459.3,3458.4,0.1448]
[1754151824533,0.4809023,3459.3,3458.2,7.593]
[1754151824534,0.4422,3459.2,3458.2,3.0]
[1754151824746,0.4657,3459.1,3458.2,3.0]
[1754151824946,0.4657,3459.1,3458.3,0.02891594]
[1754151825117,0.4657,3459.1,3458.1,10.2089683]
[1754151825316,0.4657,3459.1,3458.2,3.0]
[1754151825647,0.4422,3459.0,3458.2,3.0]
[1754151826047,0.9079,3459.6,3458.7,3.0]
[1754151826247,0.9079,3459.6,3458.8,0.02891176]
[1754151826624,0.9079,3459.6,3458.7,3.1448]
[1754151828925,0.9231023,3459.5,3458.7,7.3848]
[1754151829153,0.0152023,3459.5,3458.7,7.24]
[1754151829342,0.9079,3459.4,3458.7,7.24]
[1754151829643,0.9079,3459.3,3458.7,7.24]
[1754151829848,0.9079,3459.2,3458.7,7.24]
[1754151830192,0.9079,3459.1,3458.7,7.24]
[1754151830477,0.55,3459.7,3458.7,7.24]
[1754151830692,0.9079,3459.0,3458.7,7.24]
[1754151830879,0.4657,3459.0,3458.7,7.24]
[1754151831391,0.4422,3459.2,3458.7,7.24]
[1754151831675,0.55,3459.7,3458.7,7.24]
[1754151831832,0.9079,3459.1,3458.7,7.24]
[1754151833429,0.4657,3459.1,3458.7,7.24]
[1754151833628,0.918,3459.0,3458.7,7.24]
[1754151834163,0.918,3458.9,3458.7,7.24]
[1754151834365,0.4435,3458.9,3458.7,7.24]
[1754151834688,0.4745,3459.2,3458.7,7.24]
[1754151834839,0.918,3459.1,3458.5,3.0]
[1754151835036,0.0152023,3459.0,3458.4,3.1448]
[1754151835234,0.918,3459.0,3458.4,3.0]
[1754151835435,0.0152023,3459.6,3458.4,3.0]
[1754151835638,0.55,3459.4,3458.4,3.0]
[1754151835851,0.55,3459.2,3458.4,3.0]
[1754151836161,0.918,3459.1,3458.4,3.0]
[1754151836495,0.918,3459.0,3458.3,8.83]
[1754151836648,0.55,3459.2,3458.3,8.83]
[1754151836853,0.918,3458.9,3458.3,8.83]
[1754151837084,0.918,3458.8,3458.2,3.0]
[1754151840681,0.4435,3459.2,3458.2,3.0]
[1754151840884,0.4435,3459.6,3458.7,3.0]
[1754151841064,0.4435,3459.6,3458.8,0.4538]
[1754151841266,0.001,3459.8,3458.8,0.4538]
[1754151841467,0.001,3459.8,3459.1,9.5730683]
[1754151841715,0.001,3459.8,3459.0,4.588]
[1754151841852,0.001,3459.8,3459.1,0.1448]
[1754151842411,0.4755,3459.8,3459.0,4.588]
[1754151842565,0.4587023,3459.7,3459.0,4.588]
[1754151842890,0.001,3459.8,3459.0,4.588]
[1754151843075,0.4755,3459.8,3459.0,4.588]
[1754151843295,0.001,3459.8,3459.1,10.20057755]
[1754151843505,0.001,3459.8,3459.0,4.7354]
[1754151843506,0.001,3459.8,3459.6,9.5730683]
[1754151843985,0.001,3459.8,3459.7,0.4538]
[1754151844364,0.001,3459.8,3459.5,3.1448]
[1754151844561,0.4435,3459.7,3459.0,3.0]
[1754151844964,0.001,3459.8,3459.1,0.4538]
[1754151845164,0.001,3459.8,3459.1,0.5986]
[1754151845380,0.001,3459.8,3459.2,0.4538]
[1754151845581,0.001,3459.8,3459.5,9.5730683]
[1754151845759,0.001,3459.8,3459.5,9.7178683]
[1754151845959,0.001,3459.8,3459.6,0.4538]
[1754151846490,0.001,3459.8,3459.3,4.587]
[1754151846697,0.919,3459.8,3459.3,4.586]
[1754151847073,0.918,3459.7,3459.3,4.586]
[1754151847278,0.918,3459.6,3459.3,4.586]
[1754151848720,0.918,3459.6,3458.8,3.5986]
[1754151848721,0.4745,3459.6,3459.0,4.586]
[1754151848889,0.4435,3459.5,3459.0,4.586]
[1754151849575,0.001,3459.8,3458.7,0.1448]
[1754151849777,0.918,3459.4,3458.8,4.585]
[1754151849977,0.4435,3459.4,3458.8,4.585]
[1754151850175,0.4745,3459.7,3458.8,4.585]
[1754151850380,0.918,3459.7,3458.9,3.0]
[1754151850694,0.918,3459.7,3458.8,7.585]
[1754151850695,0.4435,3459.7,3458.8,4.585]
[1754151850895,0.001,3459.8,3458.9,3.4538]
[1754151851213,0.55,3459.7,3458.9,3.4538]
[1754151852397,0.55,3459.7,3458.9,0.4538]
[1754151852696,0.55,3459.7,3458.9,3.4538]
[1754151854656,0.918,3459.6,3458.9,4.584]
[1754151854807,0.4435,3459.6,3458.9,4.584]
[1754151857530,0.4745,3459.5,3458.9,4.584]
[1754151857728,0.9935,3459.4,3458.6,4.582]
[1754151857930,0.4745,3459.3,3458.6,4.582]
[1754151858109,0.4745,3459.3,3458.6,5.0358]
[1754151858440,0.918,3459.7,3458.7,0.4538]
[1754151859639,0.001,3459.8,3458.6,4.7268]
[1754151859640,0.918,3459.6,3458.6,4.7268]
[1754151860644,0.918,3459.6,3458.7,3.4538]
[1754151861329,0.4435,3459.6,3458.8,0.4538]
[1754151861720,0.55,3459.7,3459.0,9.5730683]
[1754151861917,0.55,3459.7,3459.0,14.6157683]
[1754151862185,0.4755,3459.8,3459.0,14.6157683]
[1754151862484,0.001,3459.8,3459.1,0.4617]
[1754151867842,0.55,3459.6,3458.9,4.242]
[1754151868046,0.9273,3459.5,3458.9,4.242]
[1754151868882,0.55,3459.7,3458.9,4.242]
[1754151869390,0.001,3459.8,3459.1,3.0]
[1754151869729,0.001,3459.8,3459.2,0.4617]
[1754151869876,0.001,3459.8,3459.2,0.6091]
[1754151870076,0.001,3459.8,3459.5,9.5730683]
[1754151870384,0.001,3459.8,3459.6,0.02890507]
[1754151870684,0.001,3459.8,3459.6,0.4617]
[1754151870901,0.001,3459.8,3459.7,0.49060424]
[1754151871478,0.001,3459.8,3459.7,0.6091]
[1754151872005,0.001,3459.8,3459.7,0.4617]
[1754151872629,0.001,3459.8,3459.7,0.49060424]
[1754151873416,0.001,3459.8,3459.7,0.63800424]
[1754151873614,0.001,3459.8,3459.7,0.17370424]
[1754151873832,0.001,3460.2,3460.1,12.5730683]
[1754151874088,0.001,3460.9,3460.2,3.0]
[1754151874286,0.001,3460.9,3460.8,12.5730683]
[1754151874538,0.001,3461.3,3460.9,3.0]
[1754151874720,0.001,3461.3,3460.9,3.6091]
[1754151875021,0.001,3461.3,3461.2,0.1448]
[1754151875180,0.001,3461.3,3461.2,7.7218]
[1754151875589,0.9273,3462.5,3461.3,3.0]
[1754151875800,0.9273,3462.5,3461.6,12.7178683]
[1754151875996,0.9273,3462.5,3461.6,17.2948683]
[1754151876196,0.4366,3462.5,3461.6,17.7565683]
[1754151876490,0.4366,3462.5,3461.6,17.9039683]
[1754151876691,0.4366,3462.5,3461.6,3.1448]
[1754151877000,0.9273,3462.3,3461.6,7.575]
[1754151877190,0.9273,3462.3,3461.6,8.0367]
[1754151877697,0.9273,3462.3,3461.6,3.4617]
[1754151877908,0.4376,3461.7,3461.5,4.575]
[1754151878109,0.9283,3461.7,3461.5,4.575]
[1754151878315,0.4917,3461.7,3461.3,0.1448]
[1754151878515,0.9283,3461.7,3461.4,4.575]
[1754151878822,0.001,3461.7,3461.4,4.575]
[1754151879292,0.9273,3461.6,3461.2,4.574]
[1754151879488,0.9273,3461.5,3461.2,4.574]
[1754151879826,0.9273,3461.5,3460.9,3.1448]
[1754151879827,0.9273,3461.4,3461.1,4.573]
[1754151880126,0.4366,3461.4,3461.1,4.573]
[1754151880424,0.9283,3461.7,3461.1,4.573]
[1754151881710,0.9283,3461.7,3460.4,0.1474]
[1754151881711,0.9273,3461.6,3460.2,0.4617]
[1754151881914,0.9273,3461.6,3460.7,0.1448]
[1754151882239,0.9273,3461.5,3460.8,3.0]
[1754151882632,0.4907,3461.4,3460.8,3.0]
[1754151884537,0.4907,3461.4,3460.7,0.1448]
[1754151884693,0.4366,3461.3,3460.5,0.1448]
[1754151885038,0.4366,3461.3,3459.9,4.571]
[1754151885039,0.55,3461.2,3459.9,4.571]
[1754151885208,0.4518023,3461.3,3460.0,3.0]
[1754151885209,0.55,3461.0,3460.0,3.0]
[1754151885404,0.9273,3460.9,3460.0,3.0]
[1754151885733,0.0152023,3461.6,3459.9,4.571]
[1754151885734,0.9273,3460.8,3459.9,4.571]
[1754151886035,0.9273,3460.8,3460.0,3.0]
[1754151886335,0.9273,3460.8,3460.0,3.4617]
[1754151887512,0.5652023,3461.5,3459.9,3.0]
[1754151887711,0.55,3460.6,3459.5,4.571]
[1754151887911,1.0902323,3460.5,3459.5,4.7158]
[1754151888238,0.9273,3460.5,3459.6,3.0]
[1754151889139,0.9273,3460.5,3459.6,7.57]
[1754151889840,0.9283,3460.5,3459.6,7.57]
[1754151890002,0.53704502,3460.5,3459.6,7.57]
[1754151891232,0.53704502,3460.5,3459.6,3.0]
[1754151891424,0.53704502,3460.5,3459.7,4.57]
[1754151891626,0.53704502,3460.5,3459.6,7.57]
[1754151892330,0.4879023,3460.4,3459.6,3.0]
[1754151892508,0.9615,3460.4,3459.6,7.569]
[1754151892711,0.001,3460.5,3459.6,7.569]
[1754151892910,0.001,3460.5,3459.7,0.4762]
[1754151893360,0.001,3460.5,3459.8,9.7178683]
[1754151893646,0.001,3460.5,3459.8,10.1596683]
[1754151894011,0.001,3460.5,3459.9,0.4762]
[1754151894238,0.001,3460.5,3459.9,0.918]
[1754151894552,0.001,3460.5,3460.0,5.487]
[1754151894941,0.001,3460.5,3460.1,0.918]
[1754151895344,0.001,3460.5,3460.2,0.918]
[1754151896574,0.001,3460.5,3460.3,0.4762]
[1754151896738,0.001,3460.5,3460.3,0.918]
[1754151897053,0.001,3460.5,3460.1,3.0]
[1754151897219,0.9615,3460.4,3459.7,3.0]
[1754151897430,0.9615,3460.4,3459.9,3.0]
[1754151897857,0.001,3460.5,3460.0,0.918]
[1754151898025,0.001,3460.5,3460.0,1.0628]
[1754151898217,0.001,3460.5,3460.1,0.918]
[1754151898420,0.001,3460.5,3460.2,0.40917017]
[1754151898658,0.001,3460.5,3460.2,1.32717017]
[1754151898844,0.001,3460.5,3460.3,0.918]
[1754151899558,0.001,3460.5,3460.3,0.4762]
[1754151900950,0.9615,3460.4,3459.4,0.4762]
[1754151901152,0.9615,3460.4,3459.7,0.1448]
[1754151901465,0.9615,3460.4,3459.5,4.567]
[1754151901466,0.9767023,3460.3,3459.5,4.567]
[1754151901682,0.4888,3460.2,3459.5,4.567]
[1754151902024,0.001,3460.5,3459.5,4.567]
[1754151902258,0.001,3460.5,3459.5,5.188]
[1754151902259,0.4888,3460.4,3459.5,5.188]
[1754151902475,0.4888,3460.4,3459.6,3.0]
[1754151902634,0.001,3460.5,3459.7,9.5730683]
[1754151902839,0.001,3460.5,3460.2,9.5730683]
[1754151903353,0.001,3460.5,3459.9,4.566]
[1754151903561,0.001,3460.5,3460.0,5.0422]
[1754151904279,0.001,3460.5,3460.0,4.566]
[1754151904456,0.001,3460.5,3460.1,0.4762]
[1754151904676,0.001,3460.5,3460.1,0.918]
[1754151904867,0.001,3460.5,3460.1,0.4762]
[1754151905982,0.001,3460.5,3460.2,0.4762]
[1754151906151,0.001,3460.5,3460.1,0.4418]
[1754151906483,0.001,3460.5,3460.0,4.566]
[1754151906638,0.001,3460.5,3460.1,0.4762]
[1754151906837,0.001,3460.5,3460.1,0.918]
[1754151907081,0.001,3460.5,3460.2,0.4762]
[1754151907383,0.001,3460.5,3460.2,10.51996836]
[1754151907538,0.001,3460.5,3460.2,9.5730683]
[1754151907740,0.001,3460.5,3460.3,0.4762]
[1754151908053,0.001,3460.5,3460.3,0.918]
[1754151908251,0.001,3460.5,3460.4,0.4762]
[1754151908580,0.001,3460.5,3460.4,0.621]
[1754151908780,0.001,3460.5,3460.2,10.0492683]
[1754151908983,0.001,3460.5,3460.3,0.1448]
[1754151909352,0.001,3460.5,3460.3,0.5866]
[1754151909557,0.001,3460.5,3460.3,0.621]
[1754151910747,0.001,3460.5,3460.4,0.4762]
[1754151911248,0.001,3460.5,3460.4,0.918]
[1754151911588,0.001,3460.5,3460.4,5.481]
[1754151912494,0.001,3461.3,3460.4,5.481]
[1754151912680,0.001,3461.3,3460.9,9.5730683]
[1754151912841,0.001,3461.3,3461.0,3.0]
[1754151913043,0.001,3461.3,3461.0,3.50509338]
[1754151913366,0.001,3461.3,3461.0,8.0392]
[1754151913760,0.001,3461.3,3461.0,7.563]
[1754151914658,0.4737,3461.3,3461.0,7.563]
[1754151914861,0.9625,3461.3,3461.0,7.563]
[1754151915272,0.001,3461.3,3461.0,7.563]
[1754151915468,0.001,3461.3,3461.1,0.4762]
[1754151915642,0.001,3461.3,3461.0,7.563]
[1754151917472,0.4898,3461.3,3461.0,7.563]
[1754151917674,0.9625,3461.3,3461.0,7.563]
[1754151917876,0.4898,3461.3,3461.0,7.563]
[1754151918296,0.001,3461.3,3461.0,7.563]
[1754151919282,0.001,3461.3,3461.1,0.94689254]
[1754151919454,0.001,3461.3,3461.2,7.7048]
[1754151919656,0.001,3461.3,3461.2,8.6228]
[1754151919878,0.001,3461.3,3461.2,8.8430293]
[1754151923690,0.001,3461.3,3461.2,7.9230293]
[1754151924215,0.001,3461.3,3461.2,8.3929293]
[1754151924370,0.001,3461.7,3461.2,8.3929293]
[1754151924371,0.001,3461.7,3461.3,3.0]
[1754151924556,0.001,3461.7,3461.6,12.7178683]
[1754151924901,0.001,3461.7,3461.6,17.2748683]
[1754151925200,0.001,3461.7,3461.6,18.1846683]
[1754151925408,0.4957,3462.9,3461.7,3.0]
[1754151925570,0.4628,3463.1,3461.9,3.0]
[1754151925898,0.4628,3463.1,3462.6,3.0]
[1754151926107,20.868112,3465.0,3463.0,9.5730683]
[1754151926409,0.4957,3463.8,3463.1,7.557]
[1754151926615,0.4957,3463.8,3463.4,0.144]
[1754151926908,0.4957,3463.8,3463.5,4.557]
[1754151926909,0.4957,3463.7,3463.5,4.557]
[1754151927093,0.4957,3463.6,3463.5,4.557]
[1754151927284,0.9585,3463.6,3463.5,4.557]
[1754151928216,0.9585,3463.6,3463.0,4.555]
[1754151928510,0.9585,3463.5,3463.0,4.555]
[1754151928711,0.9585,3463.4,3463.0,4.555]
[1754151928901,0.9585,3463.3,3463.0,4.555]
[1754151929219,0.9585,3463.2,3462.9,3.0]
[1754151929435,0.9585,3463.1,3462.8,4.555]